{"text_format":"1","workbook":"xlsx","n_sheets":1,"sheets":["1,2,3,4,5,6"],"not_rendered":{"charts":0,"images":0,"macros":0,"external_links":0,"defined_names":4,"comments":0,"pivot_tables":0},"unopened":[],"bounds":{"document_bytes":16777216,"sheet_cells":100000,"rows_first":2000,"rows_last":500,"rows_between":2000,"halvings":0,"cell_chars":16384,"cell_head_chars":4096},"cells_cut":0,"cells_raw":0,"read":"whole","date_system":"1900"}

{"sheet":"1,2,3,4,5,6","index":0,"n_rows":108,"n_cols":15,"rows_kept":108,"cut":false,"hidden":false,"merged":[[70,9,70,10],[76,11,76,12],[77,5,77,6],[80,7,80,8],[80,11,80,12],[80,9,80,10],[73,11,73,12],[72,2,72,3],[73,2,73,3],[72,5,72,6],[72,7,72,8],[73,5,73,6],[73,7,73,8],[72,9,72,10],[72,11,72,12],[78,2,78,12],[76,9,76,10],[98,0,98,15],[99,0,99,15],[93,1,93,14],[102,0,102,6],[103,0,103,6],[103,7,103,8],[103,10,103,13],[107,0,107,6],[107,7,107,8],[107,10,107,13],[104,7,104,8],[104,10,104,13],[106,0,106,6],[106,7,106,8],[106,10,106,13],[48,2,48,12],[97,0,97,15],[86,0,87,0],[86,1,87,1],[86,2,87,2],[86,3,86,5],[82,0,82,6],[83,0,84,15],[81,2,81,12],[86,6,86,8],[86,9,86,11],[86,12,86,14],[79,2,79,3],[79,5,79,6],[79,7,79,8],[79,9,79,10],[79,11,79,12],[68,2,68,3],[68,5,68,6],[68,7,68,8],[68,9,68,10],[68,11,68,12],[80,2,80,3],[80,5,80,6],[44,4,45,4],[44,2,45,3],[44,1,45,1],[46,2,46,3],[44,5,45,6],[46,5,46,6],[47,2,47,12],[44,11,45,12],[46,9,46,10],[46,11,46,12],[44,9,45,10],[44,7,45,8],[46,7,46,8],[0,10,0,12],[2,10,2,12],[6,0,6,9],[38,0,38,3],[10,3,10,13],[11,2,11,3],[12,2,12,3],[11,4,11,13],[12,4,12,13],[14,3,14,10],[7,3,7,13],[8,3,8,13],[33,0,34,3],[36,0,36,3],[35,0,35,3],[17,2,17,3],[17,5,17,6],[17,10,17,11],[23,10,23,12],[30,0,30,12],[21,1,21,9],[15,5,15,8],[16,5,16,6],[19,5,19,6],[15,9,15,12],[16,10,16,11],[19,10,19,11],[17,0,17,1],[13,1,13,8],[16,0,16,1],[16,2,16,3],[15,0,15,4],[19,0,19,1],[19,2,19,3],[18,0,18,1],[18,2,18,3],[18,5,18,6],[18,10,18,11],[65,7,65,8],[65,9,65,10],[65,11,65,12],[69,2,69,3],[69,5,69,6],[69,7,69,8],[69,9,69,10],[65,2,65,3],[65,5,65,6],[69,11,69,12],[67,2,67,12],[66,2,66,3],[66,5,66,6],[66,7,66,8],[66,9,66,10],[66,11,66,12],[77,7,77,8],[77,9,77,10],[77,11,77,12],[74,2,74,12],[75,2,75,3],[76,2,76,3],[77,2,77,3],[75,5,75,6],[75,9,75,10],[75,11,75,12],[76,5,76,6],[75,7,75,8],[76,7,76,8],[71,2,71,12],[70,5,70,6],[70,7,70,8],[70,11,70,12],[70,2,70,3],[73,9,73,10],[52,7,52,8],[52,9,52,10],[52,11,52,12],[54,5,54,6],[54,7,54,8],[54,9,54,10],[54,11,54,12],[62,0,62,12],[63,2,63,12],[64,2,64,12],[61,11,61,12],[55,2,55,3],[56,2,56,3],[58,2,58,3],[59,2,59,3],[60,2,60,3],[61,2,61,3],[60,5,60,6],[49,2,49,3],[20,0,20,1],[20,2,20,3],[20,5,20,6],[20,10,20,11],[37,0,37,3],[39,0,39,3],[22,0,22,11],[23,0,24,0],[23,1,24,1],[23,2,24,2],[23,3,24,3],[23,4,23,6],[23,7,23,9],[32,0,32,11],[33,4,33,6],[33,7,33,9],[49,5,49,6],[49,7,49,8],[49,9,49,10],[49,11,49,12],[33,10,33,12],[43,0,43,3],[44,0,45,0],[58,9,58,10],[58,11,58,12],[57,0,57,12],[53,0,53,12],[50,7,50,8],[51,0,51,12],[50,2,50,3],[52,2,52,3],[54,2,54,3],[60,7,60,8],[60,9,60,10],[60,11,60,12],[61,5,61,6],[61,7,61,8],[61,9,61,10],[50,9,50,10],[50,11,50,12],[52,5,52,6],[50,5,50,6],[59,5,59,6],[59,7,59,8],[59,9,59,10],[59,11,59,12],[55,5,55,6],[55,7,55,8],[55,9,55,10],[55,11,55,12],[56,5,56,6],[56,7,56,8],[56,9,56,10],[56,11,56,12],[58,5,58,6],[58,7,58,8]]}
[null,null,null,null,null,null,null,null,null,null,"ЗАТВЕРДЖЕНО"]
[null,null,null,null,null,null,null,null,null,null,"Наказ Міністерства фінансів України"]
[null,null,null,null,null,null,null,null,null,null,"26.08.2014 N 836 "]
[]
[]
[null,null,null,null,null,null,null," ЗВІТ"]
["про виконання паспорта бюджетної програми місцевого бюджету  станом на",null,null,null,null,null,null,null,null,null,"01","січня","2018 року"]
["1.","0300000",null,"Виконавчий комітет Житомирської міської ради Житомирської області"]
[null,"(КПКВК МБ) ",null,"      (найменування головного розпорядника) "]
["2.","0310000",null,"Виконавчий комітет Житомирської міської ради Житомирської області"]
[null,"(КПКВК МБ) ",null,"      (найменування відповідального виконавця) "]
["3.","0318100",null,null,"Надання  та  повернення пільгового довготермінового кредиту  на будівництво (реконструкцію) та придбання житла"]
[null,"(КПКВК МБ) ","(КФКВК) ",null,"      (найменування бюджетної програми) "]
["4.","Видатки та надання кредитів  за бюджетною програмою за  звітний період"]
[null,null,null,null,null,null,null,null,null,null,null,"(тис. грн.)"]
["Затверджено паспортом бюджетної програми ",null,null,null,null,"Касові видатки (надані кредити)",null,null,null,"Відхилення "]
["загальний фонд ",null,"спеціальний фонд ",null,"разом ","загальний фонд ",null,"спеціальний фонд ","разом ","загальний фонд ","спеціальний фонд ",null,"разом "]
[1,null,2,null,3,4,null,5,6,7,8,null,9]
[1079.5999999999999,null,116.5,null,{"$f":"SUM(A19:D19)","v":1196.0999999999999},1079.5999999999999,null,82.879000000000005,{"$f":"SUM(F19:H19)","v":1162.4789999999998},{"$f":"A19-F19","v":0},{"$f":"H19-C19","v":-33.620999999999995},null,{"$f":"SUM(J19:L19)","v":-33.620999999999995}]
[64.8,null,6.99,null,{"$f":"SUM(A20:D20)","v":71.789999999999992},64.8,null,4.9720000000000004,{"$f":"SUM(F20:H20)","v":69.771999999999991},{"$f":"A20-F20","v":0},{"$f":"H20-C20","v":-2.0179999999999998},null,{"$f":"SUM(J20:L20)","v":-2.0179999999999998}]
[{"$f":"SUM(A19:A20)","v":1144.3999999999999},null,{"$f":"SUM(C19:C20)","v":123.49},null,{"$f":"SUM(E19:E20)","v":1267.8899999999999},{"$f":"SUM(F19:F20)","v":1144.3999999999999},null,{"$f":"SUM(H19:H20)","v":87.850999999999999},{"$f":"SUM(I19:I20)","v":1232.2509999999997},{"$f":"SUM(J19:J20)","v":0},{"$f":"SUM(K19:K20)","v":-35.638999999999996},null,{"$f":"SUM(M19:M20)","v":-35.638999999999996}]
["5. ","Обсяги фінансування бюджетної програми за звітний період у розрізі підпрограм  та завдань"]
[null,null,null,null,null,null,null,null,null,null,null,null,"(тис. грн.)"]
["N з/п ","КПКВК","КФКВК","Підпрограма/зав-дання бюджетної програми","Затверджено паспортом бюджетної програми на звітний період ",null,null,"Касові видатки (надані кредити) за звітний період ",null,null,"Відхилення "]
[null,null,null,null,"загальний фонд ","спеціальний фонд ","разом ","загальний фонд ","спеціальний фонд ","разом ","загальний фонд ","спеціальний фонд ","разом "]
[1,318103,1060,"Підпрограма 1 . Надання пільгового довгострокового кредиту громадянам на будівництво (реконструкцію) та придбання житла.",1079.5999999999999,116.5,{"$f":"SUM(E26:F26)","v":1196.0999999999999},1079.5999999999999,82.9,{"$f":"SUM(H26:I26)","v":1162.5},{"$f":"E26-H26","v":0},{"$f":"SUM(I26-F26)","v":-33.599999999999994},{"$f":"K26+L26","v":-33.599999999999994}]
[null,318103,1060,"Завдання 1 . Надання пільгового довгострокового кредиту громадянам на будівництво (реконструкцію) та придбання житла.",1079.5999999999999,116.5,{"$f":"SUM(E27:F27)","v":1196.0999999999999},1079.5999999999999,82.9,{"$f":"SUM(H27:I27)","v":1162.5},{"$f":"E27-H27","v":0},{"$f":"SUM(I27-F27)","v":-33.599999999999994},{"$f":"K27+L27","v":-33.599999999999994}]
[2,"0318108",1060,"Підпрограма 2. Витрати пов\"язані з наданням  пільгового довгострокового кредиту громадянам на будівництво (реконструкцію) та придбання житла",64.8,7,{"$f":"SUM(E28:F28)","v":71.8},64.8,5,{"$f":"SUM(H28:I28)","v":69.8},0,{"$f":"SUM(I28-F28)","v":-2},{"$f":"K28+L28","v":-2}]
[null,"0318108",1060,"Завдання1. Витрати пов\"язані з наданням  пільгового довгострокового кредиту громадянам на будівництво (реконструкцію) та придбання житла",64.8,7,{"$f":"SUM(E29:F29)","v":71.8},64.8,5,{"$f":"SUM(H29:I29)","v":69.8},{"$f":"E29-H29","v":0},{"$f":"SUM(I29-F29)","v":-2},{"$f":"K29+L29","v":-2}]
[null,null,null,"Усього",{"$f":"SUM(E27:E29)","v":1209.1999999999998},{"$f":"SUM(F27:F29)","v":130.5},1339.6999999999998,1209.1999999999998,92.9,{"$f":"SUM(J26+J28)","v":1232.3},0,{"$f":"SUM(L26+L28)","v":-35.599999999999994},{"$f":"SUM(K30:L30)","v":-35.599999999999994}]
[]
["6. ","Видатки на реалізацію регіональних цільових програм, які виконуються в межах бюджетної програми, за звітний період"]
[null,null,null,null,null,null,null,null,null,null,null,null,"(тис. грн.)"]
["Назва  регіональної цільової програми  та підпрограми",null,null,null,"Затверджено паспортом бюджетної програми на звітний період ",null,null,"Касові видатки ( надані кредити) за звітний період",null,null,"Відхилення "]
[null,null,null,null,"загальний фонд ","спеціальний фонд ","разом ","загальний фонд ","спеціальний фонд ","разом ","загальний фонд ","спеціальний фонд ","разом "]
[1,null,null,null,2,3,4,5,6,7,8,9,10]
["Регіональна цільова програма 1 "]
["Програма забезпечення молодих сімей та одиноких молодих громадян житлом в м.Житомирі на 2013 -2017 роки",null,null,null,1079.5999999999999,116.5,{"$f":"SUM(E38:F38)","v":1196.0999999999999},1079.5999999999999,82.9,{"$f":"SUM(H38:I38)","v":1162.5},{"$f":"E38-H38","v":0},{"$f":"I38-F38","v":-33.599999999999994},{"$f":"K38+L38","v":-33.599999999999994}]
["Програма забезпечення молодих сімей та одиноких молодих громадян житлом в м.Житомирі на 2013 -2017 роки",null,null,null,64.8,7,{"$f":"SUM(E39:F39)","v":71.8},64.8,5,{"$f":"SUM(H39:I39)","v":69.8},0,{"$f":"I39-F39","v":-2},{"$f":"K39+L39","v":-2}]
["Усього",null,null,null,{"$f":"SUM(E38:E39)","v":1144.3999999999999},{"$f":"SUM(F38:F39)","v":123.5},1267.8999999999999,1144.3999999999999,87.9,1232.3,0,-35.599999999999994,-35.599999999999994]
[]
["7. Результативні показники бюджетної програми, та аналіз їх виконання за звітний період"]
[]
[]
["N з/п ","КПКВК","Показники ",null,"Одиниця виміру ","Джерело інформації ",null,"Затверджено паспортом бюджетної програми на звітний період",null,"Виконано за звітний період ( касові видатки/надані кредити)",null,"Відхилення"]
[]
[1,2,3,null,4,5,null,6,null,7,null,8]
[null,null,"Підпрограма 1. Надання  пільгового довгострокового кредиту громадянам на будівництво (реконструкцію) та придбання житла"]
[null,"0318098","Завдання 1. Надання пільгового довгострокового кредиту громадянам на будівництво (реконструкцію) та придбання житла"]
[null,null,"затрат"]
[null,null,"кількість сімей, які перебувають на обліку",null,"од.","реєстр",null,117,null,119,null,{"$f":"J51-H51","v":2}]
["Збільшилась кількість звернень громадян"]
[null,null,"обсяг витрат, які передбачені для надання довгострокового кредиту громадянам на будівництво (реконструкцію) та придбання житла",null,"тис.грн.","рішення міської ради від 21.12.2016 №42 зі змінами",null,1196.0999999999999,null,1161.9000000000001,null,{"$f":"J53-H53","v":-34.199999999999818}]
["Фактичний результативний показник менший у порівнянні з затвердженим у зв'язку з тим , що кошти із спецфонду  використані в межах надходжень"]
[null,null,"продукту"]
[null,null,"кількість сімей, яким планується надати кредит",null,"од.","розрахункові показники",null,3,null,3,null,{"$f":"J56-H56","v":0}]
[null,null,"площа, яку планується надати",null,"м.кв.","розрахункові показники",null,156.34,null,122.9,null,-33.44]
["Фактичний результативний показник менший у порівнянні з затвердженим у зв'язку із збільшенням вартості 1 кв.м., та  використанням коштів спецфонду в межах надходжень"]
[null,null,"ефективності"]
[null,null,"середні витрати на надання кредиту на 1 сім'ю ",null,"тис.грн.","розрахункові показники",null,398.7,null,387.3,null,{"$f":"J60-H60","v":-11.399999999999977}]
[null,null,"якості"]
[null,null,"Відсоток молодих сімей, яким планується надати житло, до кількості сімей, що перебувають на обліку",null,"%","розрахункові показники",null,2.6,null,2.6,null,{"$f":"J62-H62","v":0}]
["Фактичний результативний показник менший у порівнянні з затвердженим у зв'язку із збільшенням вартості 1 кв.м., та  використанням коштів спецфонду в межах надходжень"]
[null,null,"Підпрограма 2. Витрати, пов'язані з наданням та обслуговуванням пільгових довгострокових кредитів, наданих громадянам на будівництво (реконструкцію) та придбання житла"]
[null,null,"завдання 1.  Витрати, пов'язані з наданням та обслуговуванням пільгових довгострокових кредитів, наданих громадянам на будівництво (реконструкцію) та придбання житла"]
[1,null,"затрат"]
[null,"0318108","Кількість громадян (сімей), які перебувають на обліку",null,"од.","реєстр",null,117,null,119,null,{"$f":"J67-H67","v":2}]
[null,null,"Громадяни(сім'ї), які вибули протягом звітного року у звязку з досягененням граничного віку 36 років та(або) отриманням кредитів."]
[null,"0318108","обсяг витрат, пов'язаних з наданням та обслуговуванням пільгових довгострокових кредитів, наданих громадянам на будівництво (реконструкцію) та придбання житла",null,"од.","рішення міської ради від 21.12.2016 №42 зі змінами",null,71.8,null,69.8,null,{"$f":"J69-H69","v":-2}]
[2,null,"продукту"]
[null,"0318108","Кількість укладених договорів, за якими планується здійснювати обслуговування кредитів",null,"од.","розрахункові показники",null,3,null,3,null,{"$f":"J71-H71","v":0}]
[]
[3,null,"ефективності"]
[null,"0318090","Середні витрати на обслуговування одного кредитного договору",null,"грн","розрахункові показники",null,23.9,null,{"$f":"J29/J71","v":23.266666666666666},null,{"$f":"J74-H74","v":-0.63333333333333286}]
[null,null,"Фактичний результативний показник менший у порівнянні з затвердженим у зв'язку з тим , що кошти із спецфонду  використані в межах надходжень"]
[null,null,"якості"]
[null,null,"показник"]
[null,null,"…"]
[null,null,"Пояснення щодо причин розбіжностей між затвердженими та досягнутими результативними показниками"]
[4,null,"якості"]
[null,"0318090","Динаміка зростання витрат на обслуговування одного кредитного договору порівняно з  попереднім роком",null,"%","розрахунково",null,130.19999999999999,null,{"$f":"J74/H74*100","v":97.350069735006969},null,{"$f":"J81-H81","v":-32.84993026499302}]
[null,null,"Фактичний результативний показник менший у порівнянні з затвердженим у зв'язку з тим , що один з кредитів наданий частково та змішаний з коштами обласного бюджету"]
[]
["8. Джерела фінансування інвестиційних проектів у розрізі підпрограм 3"]
[]
[null,null,null,null,null,null,null,null,null,null,null,null,null,null,"(тис. грн.)"]
["Код","Найменування джерел надходжень ","КПКВК","Касові видатки станом на 01 січня звітного періоду ",null,null,"План видатків звітного періоду ",null,null,"Касові видатки за звітний період ",null,null,"Прогноз видатків до кінця реалізації  інвестиційного проекту "]
[null,null,null,"загальний фонд ","спеціальний фонд ","разом ","загальний фонд ","спеціальний фонд ","разом ","загальний фонд ","спеціальний фонд ","разом ","загальний фонд ","спеціальний фонд ","разом "]
[1,2,"3.",4,5,6,7,8,9,10,11,12,13,14,15]
[null,"Підпрограма 1",null,"  ","  ","  ","  ","  ","  ","  ","  ","  ","  ","  ","  "]
[null,"Інвестиційний проект 1",null,"  ",null,"  ","  ",null,"  ","  ",null,"  ","  ","  ","  "]
[null,"Надходження із бюджету"]
[null,"Інші джерела фінансування (за видами) ",null,"Х ","  ",null,"Х ","  ","  ","Х ","  ","  ","Х ","  ","  "]
[null,"Пояснення щодо розбіжностей між фактичними надходженнями і тими, що затверджені паспортами бюджетної програми"]
[null,"Інвестиційний проект 2"]
[null,"Усього",null,null,null,null,null,null,null,null,null,null,null,null,"  "]
[]
["1 Код функціональної класифікації видатків та кредитування бюджету вказується лише у випадку, коли бюджетна програма не поділяється на підпрограми."]
["2 Зазначаються усі підпрограми та завдання, затверджені паспортом бюджетної програми."]
["3 Пункт 8 заповнюється тільки для затверджених у місцевому бюджеті видатків/ надання кредитів на реалізацію інвестиційних проектів ( програм)."]
[]
[]
["Керівник установи головного розпорядника"]
["бюджетних коштів ",null,null,null,null,null,null,null,null,null,"Сухомлин С.І."]
[null,null,null,null,null,null,null,"(підпис) ",null,null,"(прізвище та ініціали) "]
[]
["Головний бухгалтер установи головного розпорядника",null,null,null,null,null,null,null,null,null,"Борецька Н.В."]
["бюджетних коштів ",null,null,null,null,null,null,"(підпис) ",null,null,"(прізвище та ініціали) "]